fUST/lending_fUST_20250207
["ID","MTS","AMOUNT","RATE_DAILY","PERIOD"]
[352019200,1738883446761,-209.42742179,0.00014499,2]
[352019202,1738883446771,-500.0,0.00014499,2]
[352019204,1738883446781,-500.0,0.00014499,2]
[352019206,1738883446790,-627.26274589,0.00014499,2]
[352019208,1738883446799,-199855.48144994,0.000145,2]
[352019210,1738883446808,-1392.91,0.000145,2]
[352019212,1738883446818,-151.0,0.000145,2]
[352019214,1738883446827,-151.0,0.000145,2]
[352019216,1738883446836,-151.0,0.000145,2]
[352019218,1738883446845,-172.084125,0.000145,2]
[352019220,1738883446855,-172.084125,0.000145,2]
[352019222,1738883446868,-439.849649,0.000145,2]
[352019224,1738883446879,-439.849649,0.000145,2]
[352019226,1738883446891,-151.0,0.000145,2]
[352019228,1738883446903,-178.365492,0.000145,2]
[352019230,1738883446912,-178.365492,0.000145,2]
[352019232,1738883446922,-151.0,0.000145,2]
[352019234,1738883446931,-151.0,0.000145,2]
[352019236,1738883446943,-169.916902,0.000145,2]
[352019238,1738883446952,-169.916902,0.000145,2]
[352019240,1738883446962,-200.35331055,0.000145,2]
[352019242,1738883446972,-151.0,0.000145,2]
[352019244,1738883446982,-151.0,0.000145,2]
[352019247,1738883446992,-151.0,0.000145,2]
[352019249,1738883447002,-827.106435,0.000145,2]
[352019251,1738883447011,-827.106435,0.000145,2]
[352019253,1738883447021,-151.0,0.000145,2]
[352019255,1738883447030,-151.0,0.000145,2]
[352019256,1738883447039,-151.0,0.000145,2]
[352019258,1738883447048,-151.0,0.000145,2]
[352019259,1738883447058,-397.373723,0.000145,2]
[352019262,1738883447069,-397.373723,0.000145,2]
[352019263,1738883447079,-151.0,0.000145,2]
[352019265,1738883447090,-151.0,0.000145,2]
[352019266,1738883447100,-151.0,0.000145,2]
[352019267,1738883447110,-151.0,0.000145,2]
[352019268,1738883447119,-151.0,0.000145,2]
[352019269,1738883447128,-151.0,0.000145,2]
[352019270,1738883447138,-151.0,0.000145,2]
[352019271,1738883447147,-151.0,0.000145,2]
[352019272,1738883447156,-156.526555,0.000145,2]
[352019273,1738883447166,-151.0,0.000145,2]
[352019274,1738883447175,-156.526555,0.000145,2]
[352019275,1738883447186,-151.0,0.000145,2]
[352019276,1738883447195,-151.0,0.000145,2]
[352019277,1738883447204,-151.0,0.000145,2]
[352019278,1738883447214,-151.0,0.000145,2]
[352019279,1738883447223,-151.0,0.000145,2]
[352019280,1738883447232,-151.0,0.000145,2]
[352019281,1738883447242,-151.0,0.000145,2]
[352019282,1738883447251,-151.0,0.000145,2]
[352019283,1738883447261,-153.392887,0.000145,2]
[352019284,1738883447270,-151.0,0.000145,2]
[352019285,1738883447280,-500.0,0.0001452,2]
[352019286,1738883447290,-500.0,0.0001452,2]
[352019287,1738883447300,-500.0,0.0001452,2]
[352019288,1738883447310,-500.0,0.0001452,2]
[352019289,1738883447320,-500.0,0.0001452,2]
[352019290,1738883447329,-500.0,0.0001452,2]
[352019291,1738883447339,-796.75,0.0001452,2]
[352019292,1738883447349,-500.0,0.0001452,2]
[352019293,1738883447360,-547.35,0.0001452,2]
[352019294,1738883447370,-500.0,0.0001452,2]
[352019295,1738883447380,-739.29,0.0001452,2]
[352019296,1738883447390,-1565.22,0.0001452,2]
[352019297,1738883447400,-567.17,0.0001452,2]
[352019298,1738883447410,-1968.13,0.0001452,2]
[352019299,1738883447420,-500.0,0.0001452,2]
[352019300,1738883447429,-626.44,0.0001452,2]
[352019301,1738883447439,-513.06,0.0001452,2]
[352019302,1738883447449,-500.0,0.0001452,2]
[352019303,1738883447459,-6624.63,0.0001452,2]
[352019304,1738883447469,-500.0,0.0001452,2]
[352019305,1738883447479,-500.0,0.0001452,2]
[352019306,1738883447489,-500.0,0.0001452,2]
[352019307,1738883447500,-500.0,0.0001452,2]
[352019308,1738883447510,-500.0,0.0001452,2]
[352019309,1738883447520,-500.0,0.0001452,2]
[352019310,1738883447530,-600.54,0.0001452,2]
[352019311,1738883447540,-1191.6,0.0001452,2]
[352019312,1738883447550,-3635.22,0.0001452,2]
[352019313,1738883447560,-5737.73878124,0.00014555,2]
[352019314,1738883447571,-156.277,0.00014579,2]
[352019315,1738883447580,-676.448,0.00014592,2]
[352019316,1738883447591,-1196.96674125,0.00014593,2]
[352019317,1738883447602,-575.0,0.000146,5]
[352019318,1738883447612,-327.0,0.0001464,2]
[352019319,1738883447622,-465.03881011,0.00014652,2]
[352019320,1738883447631,-659.88395623,0.00014656,2]
[352019321,1738883447642,-500.0,0.00014657,2]
[352019322,1738883447651,-500.0,0.00014657,2]
[352019323,1738883447661,-500.0,0.00014657,2]
[352019324,1738883447670,-502.40238646,0.00014657,2]
[352019325,1738883447679,-500.0,0.00014657,2]
[352019326,1738883447688,-500.0,0.00014657,2]
[352019327,1738883447695,-796.75,0.00014657,2]
[352019328,1738883447704,-553.43224383,0.00014657,2]
[352019329,1738883447714,-547.35,0.00014657,2]
[352019330,1738883447723,-500.0,0.00014657,2]
[352019331,1738883447731,-739.29,0.00014657,2]
[352019332,1738883447739,-1565.22,0.00014657,2]
[352019333,1738883447748,-567.17,0.00014657,2]
[352019334,1738883447759,-1968.13,0.00014657,2]
[352019335,1738883447770,-500.0,0.00014657,2]
[352019336,1738883447781,-626.44,0.00014657,2]
[352019337,1738883447793,-513.06,0.00014657,2]
[352019338,1738883447803,-500.0,0.00014657,2]
[352019339,1738883447815,-6624.63,0.00014657,2]
[352019340,1738883447825,-500.0,0.00014657,2]
[352019341,1738883447834,-296.22080225,0.00014657,2]
[352019342,1738883447843,-500.0,0.00014657,2]
[352019343,1738883447855,-219.82542799,0.00014657,2]
[352019344,1738883447869,-500.0,0.00014657,2]
[352019345,1738883447880,-500.0,0.00014657,2]
[352019346,1738883447892,-600.54,0.00014657,2]
[352019347,1738883447904,-1191.6,0.00014657,2]
[352019348,1738883447915,-3635.22,0.00014657,2]
[352019349,1738883447926,-153.0,0.00014673,2]
[352019350,1738883447938,-153.0,0.00014673,2]
[352019351,1738883447949,-153.0,0.00014673,2]
[352019352,1738883447960,-153.0,0.00014673,2]
[352019353,1738883447972,-153.0,0.00014673,2]
[352019354,1738883447983,-153.0,0.00014673,2]
[352019355,1738883447995,-153.0,0.00014673,2]
[352019356,1738883448006,-153.0,0.00014676,2]
[352019357,1738883448017,-153.0,0.00014676,2]
[352019358,1738883448027,-153.0,0.00014676,2]
[352019359,1738883448043,-153.0,0.00014676,2]
[352019360,1738883448055,-153.0,0.00014676,2]
[352019361,1738883448066,-153.0,0.00014676,2]
[352019362,1738883448076,-153.0,0.00014676,2]
[352019363,1738883448086,-153.0,0.00014676,2]
[352019364,1738883448097,-153.0,0.00014676,2]
[352019365,1738883448108,-153.0,0.00014676,2]
[352019366,1738883448118,-153.0,0.00014676,2]
[352019367,1738883448128,-153.0,0.00014693,2]
[352019368,1738883448140,-153.0,0.00014693,2]
[352019369,1738883448150,-153.0,0.00014693,2]
[352019370,1738883448160,-153.0,0.00014693,2]
[352019371,1738883448172,-153.0,0.00014693,2]
[352019372,1738883448183,-153.0,0.00014693,2]
[352019373,1738883448194,-153.0,0.00014693,2]
[352019374,1738883448206,-1196.96674125,0.00014693,2]
[352019375,1738883448216,-153.0,0.00014696,2]
[352019376,1738883448227,-153.0,0.00014696,2]
[352019377,1738883448238,-153.0,0.00014696,2]
[352019378,1738883448249,-153.0,0.00014696,2]
[352019379,1738883448259,-153.0,0.00014696,2]
[352019380,1738883448270,-153.0,0.00014696,2]
[352019381,1738883448280,-153.0,0.00014696,2]
[352019382,1738883448293,-153.0,0.00014696,2]
[352019383,1738883448303,-153.0,0.00014696,2]
[352019384,1738883448313,-153.0,0.00014696,2]
[352019385,1738883448323,-153.0,0.00014712,2]
[352019386,1738883448333,-153.0,0.00014712,2]
[352019387,1738883448343,-153.0,0.00014712,2]
[352019388,1738883448353,-153.0,0.00014712,2]
[352019389,1738883448363,-153.0,0.00014712,2]
[352019390,1738883448373,-153.0,0.00014712,2]
[352019391,1738883448383,-153.0,0.00014712,2]
[352019392,1738883448393,-153.0,0.00014715,2]
[352019393,1738883448404,-153.0,0.00014715,2]
[352019394,1738883448414,-153.0,0.00014715,2]
[352019395,1738883448423,-153.0,0.00014715,2]
[352019396,1738883448433,-153.0,0.00014715,2]
[352019397,1738883448442,-153.0,0.00014715,2]
[352019398,1738883448452,-153.0,0.00014715,2]
[352019399,1738883448462,-153.0,0.00014715,2]
[352019400,1738883448471,-153.0,0.00014715,2]
[352019401,1738883448480,-153.0,0.00014715,2]
[352019402,1738883448490,-153.0,0.00014715,2]
[352019403,1738883448499,-153.0,0.00014733,2]
[352019404,1738883448509,-153.0,0.00014733,2]
[352019405,1738883448519,-153.0,0.00014733,2]
[352019406,1738883448528,-153.0,0.00014733,2]
[352019407,1738883448539,-153.0,0.00014733,2]
[352019408,1738883448548,-153.0,0.00014735,2]
[352019409,1738883448558,-153.0,0.00014735,2]
[352019410,1738883448568,-153.0,0.00014735,2]
[352019411,1738883448578,-153.0,0.00014735,2]
[352019412,1738883448588,-153.0,0.00014735,2]
[352019413,1738883448598,-153.0,0.00014735,2]
[352019414,1738883448609,-150.0,0.00014746,2]
[352019415,1738883448618,-150.0,0.00014746,2]
[352019416,1738883448628,-150.0,0.00014746,2]
[352019417,1738883448638,-150.0,0.00014746,2]
[352019418,1738883448648,-537.0,0.00014746,2]
[352019419,1738883448658,-1975.0,0.00014746,2]
[352019420,1738883448667,-2297.0,0.00014746,2]
[352019421,1738883448678,-1196.96674125,0.00014793,2]
[352019422,1738883448688,-172.084125,0.00014794,2]
[352019423,1738883448699,-172.084125,0.00014794,2]
[352019424,1738883448710,-439.849649,0.00014794,2]
[352019425,1738883448721,-500.0,0.00014794,2]
[352019426,1738883448732,-439.849649,0.00014794,2]
[352019427,1738883448744,-151.0,0.00014794,2]
[352019428,1738883448754,-169.916902,0.00014794,2]
[352019429,1738883448765,-169.916902,0.00014794,2]
[352019430,1738883448776,-151.0,0.00014794,2]
[352019431,1738883448787,-500.0,0.00014794,2]
[352019432,1738883448797,-151.0,0.00014794,2]
[352019433,1738883448808,-827.106435,0.00014794,2]
[352019434,1738883448818,-827.106435,0.00014794,2]
[352019435,1738883448828,-151.0,0.00014794,2]
[352019436,1738883448838,-151.0,0.00014794,2]
[352019437,1738883448848,-151.0,0.00014794,2]
[352019438,1738883448859,-500.0,0.00014794,2]
[352019439,1738883448871,-397.373723,0.00014794,2]
[352019440,1738883448883,-397.373723,0.00014794,2]
[352019441,1738883448893,-151.0,0.00014794,2]
[352019442,1738883448905,-500.0,0.00014794,2]
[352019443,1738883448915,-500.0,0.00014794,2]
[352019444,1738883448927,-151.0,0.00014794,2]
[352019445,1738883448938,-151.0,0.00014794,2]
[352019446,1738883448949,-151.0,0.00014794,2]
[352019447,1738883448959,-151.0,0.00014794,2]
[352019448,1738883448969,-796.75,0.00014794,2]
[352019449,1738883448979,-409.88941695,0.00014794,2]
[352019450,1738883449141,-137.46058305,0.00014794,2]
[352019451,1738883449151,-151.0,0.00014794,2]
[352019452,1738883449161,-523.21356832,0.00014794,2]
[352019453,1738883449170,-172.032232,0.00014794,2]
[352019454,1738883449180,-29.97271202,0.00014794,2]
[352019455,1738883449192,-126.55384298,0.00014794,2]
[352019456,1738883449202,-156.526555,0.00014794,2]
[352019457,1738883449212,-739.29,0.00014794,2]
[352019458,1738883449222,-151.0,0.00014794,2]
[352019459,1738883449232,-1565.22,0.00014794,2]
[352019460,1738883449242,-151.0,0.00014794,2]
[352019461,1738883449252,-151.0,0.00014794,2]
[352019462,1738883449262,-567.17,0.00014794,2]
[352019463,1738883449271,-1968.13,0.00014794,2]
[352019464,1738883449281,-500.0,0.00014794,2]
[352019465,1738883449291,-626.44,0.00014794,2]
[352019466,1738883449301,-513.06,0.00014794,2]
[352019467,1738883449310,-500.0,0.00014794,2]
[352019468,1738883449320,-6624.63,0.00014794,2]
[352019469,1738883449329,-377.58071974,0.00014794,2]
[352019470,1738883449338,-298.47526033,0.00014794,2]
[352019471,1738883449348,-151.0,0.00014794,2]
[352019472,1738883449357,-32.32704594,0.00014794,2]
[352019473,1738883449369,-118.67295406,0.00014794,2]
[352019474,1738883449379,-500.0,0.00014794,2]
[352019475,1738883449388,-151.0,0.00014794,2]
[352019476,1738883449397,-151.0,0.00014794,2]
[352019477,1738883449407,-500.0,0.00014794,2]
[352019478,1738883449416,-600.54,0.00014794,2]
[352019479,1738883449426,-151.0,0.00014794,2]
[352019480,1738883449436,-1191.6,0.00014794,2]
[352019481,1738883449446,-244.136295,0.00014794,2]
[352019482,1738883449455,-213.45075049,0.00014794,2]
[352019483,1738883449467,-3421.76924951,0.00014794,2]
[352019484,1738883449477,-1200.0,0.000148,2]
[352019485,1738883449487,-163.159487,0.00014825,5]
[352019486,1738883449497,-1228.6456213,0.00014849,2]
[352019487,1738883449512,-865.68744823,0.00014893,2]
[352019488,1738883449523,-331.27929302,0.00014893,2]
[352019489,1738883449533,-33.24072951,0.000149,2]
[352019490,1738883449848,-176.362131,0.00014109,2]
[352019491,1738883449859,-117.75927049,0.000149,2]
[352019492,1738883449870,-151.0,0.000149,2]
[352019493,1738883449879,-151.0,0.000149,2]
[352019494,1738883449889,-151.0,0.000149,2]
[352019495,1738883449898,-178.365492,0.000149,2]
[352019496,1738883449908,-178.365492,0.000149,2]
[352019497,1738883449918,-182.29412661,0.000149,2]
[352019498,1738883449927,-15782.28294299,0.00014917,2]
[352019499,1738883449937,-500.0,0.00014931,2]
[352019500,1738883449946,-500.0,0.00014931,2]
[352019501,1738883449956,-522.44000185,0.00014931,2]
[352019502,1738883449966,-500.0,0.00014931,2]
[352019503,1738883449975,-500.0,0.00014931,2]
[352019504,1738883449984,-796.75,0.00014931,2]
[352019505,1738883449994,-547.35,0.00014931,2]
[352019506,1738883450003,-739.29,0.00014931,2]
[352019507,1738883450013,-1565.22,0.00014931,2]
[352019508,1738883450022,-567.17,0.00014931,2]
[352019509,1738883450031,-1968.13,0.00014931,2]
[352019510,1738883450042,-500.0,0.00014931,2]
[352019511,1738883450051,-626.44,0.00014931,2]
[352019512,1738883450060,-513.06,0.00014931,2]
[352019513,1738883450069,-500.0,0.00014931,2]
[352019514,1738883450078,-6624.63,0.00014931,2]
[352019515,1738883450087,-301.16658873,0.00014931,2]
[352019516,1738883450097,-153.52927939,0.00014931,2]
[352019517,1738883450106,-600.54,0.00014931,2]
[352019518,1738883450115,-1191.6,0.00014931,2]
[352019519,1738883450124,-3635.22,0.00014931,2]
[352019520,1738883450134,-501.89676771,0.00014973,2]
[352019521,1738883450143,-500.0,0.00014973,2]
[352019522,1738883450152,-500.0,0.00014973,2]
[352019523,1738883450162,-500.0,0.00014973,2]
[352019524,1738883450171,-522.98639351,0.00014973,2]
[352019525,1738883450180,-500.0,0.00014973,2]
[352019526,1738883450190,-500.0,0.00014973,2]
[352019527,1738883450199,-500.0,0.00014973,2]
[352019528,1738883450208,-500.0,0.00014973,2]
[352019529,1738883450218,-500.0,0.00014973,2]
[352019530,1738883450228,-1196.96674125,0.00014993,2]
[352019531,1738883450239,-151.0,0.00014999,2]
[352019532,1738883450251,-169.916902,0.00014999,2]
[352019533,1738883450261,-169.916902,0.00014999,2]
[352019534,1738883450270,-151.0,0.00014999,2]
[352019535,1738883450280,-151.0,0.00014999,2]
[352019536,1738883450290,-284.789994,0.00014999,2]
[352019537,1738883450299,-827.106435,0.00014999,2]
[352019538,1738883450310,-827.106435,0.00014999,2]
[352019539,1738883450319,-827.106435,0.00014999,2]
[352019540,1738883450329,-151.0,0.00014999,2]
[352019541,1738883450339,-151.0,0.00014999,2]
[352019542,1738883450351,-151.0,0.00014999,2]
[352019543,1738883450360,-151.0,0.00014999,2]
[352019544,1738883450371,-151.0,0.00014999,2]
[352019545,1738883450381,-397.373723,0.00014999,2]
[352019546,1738883450391,-397.373723,0.00014999,2]
[352019547,1738883450401,-151.0,0.00014999,2]
[352019548,1738883450410,-151.0,0.00014999,2]
[352019549,1738883450420,-151.0,0.00014999,2]
[352019550,1738883450430,-156.526555,0.00014999,2]
[352019551,1738883450439,-156.526555,0.00014999,2]
[352019552,1738883450449,-151.0,0.00014999,2]
[352019553,1738883450459,-151.0,0.00014999,2]
[352019554,1738883450468,-151.0,0.00014999,2]
[352019555,1738883450477,-151.0,0.00014999,2]
[352019556,1738883450487,-151.0,0.00014999,2]
[352019557,1738883450496,-151.0,0.00014999,2]
[352019558,1738883450506,-13470.61503367,0.00014999,5]
[352019559,1738883527324,500.0,0.00011505,2]
[352019562,1738884332608,500.0,0.00011505,2]
[352019567,1738884432108,-300.0,0.00013104,2]
[352019568,1738884432132,-373.50815996,0.00013105,2]
[352019569,1738884432164,-900.0,0.00013105,2]
[352019570,1738884436134,-1840.33148305,0.00013105,2]
[352019571,1738884436168,-345.44559326,0.00013105,2]
[352019573,1738884449106,-8842.36980363,0.00013105,2]
[352019574,1738884449126,-428.66396129,0.00013598,2]
[352019575,1738884449151,-500.0,0.00013698,2]
[352019576,1738884449178,-504.70852396,0.00013698,2]
[352019577,1738884449200,-500.0,0.00013698,2]
[352019578,1738884449222,-500.0,0.00013698,2]
[352019579,1738884449244,-500.0,0.00013698,2]
[352019580,1738884449265,-500.0,0.00013698,2]
[352019581,1738884449287,-500.0,0.00013698,2]
[352019582,1738884449308,-500.0,0.00013698,2]
[352019583,1738884449330,-500.0,0.00013698,2]
[352019584,1738884449352,-500.0,0.00013698,2]
[352019585,1738884449374,-500.0,0.00013698,2]
[352019586,1738884449395,-500.0,0.00013698,2]
[352019587,1738884449422,-500.0,0.00013698,2]
[352019588,1738884449443,-500.0,0.00013698,2]
[352019589,1738884449464,-500.0,0.00013698,2]
[352019590,1738884449485,-500.0,0.00013698,2]
[352019591,1738884449506,-500.0,0.00013698,2]
[352019592,1738884449527,-500.0,0.00013698,2]
[352019593,1738884449549,-268.70777594,0.00013698,2]
[352019652,1738884632638,-300.0,0.00013697,2]
[352019654,1738884632649,-231.29222406,0.00013698,2]
[352019656,1738884632658,-430.70777594,0.00013698,2]
[352019660,1738884632684,-69.29222406,0.00013698,2]
[352019662,1738884632694,-500.0,0.00013698,2]
[352019664,1738884632703,-500.0,0.00013698,2]
[352019666,1738884632713,-500.0,0.00013698,2]
[352019668,1738884632722,-500.0,0.00013698,2]
[352019670,1738884632731,-430.70777094,0.00013698,2]
[352019672,1738884632743,-69.29222906,0.00013698,2]
[352019674,1738884632753,-502.09692297,0.00013698,2]
[352019677,1738884632762,-500.0,0.00013698,2]
[352019679,1738884632771,-514.58075467,0.00013698,2]
[352019681,1738884632781,-341.1900933,0.00013698,2]
[352019683,1738884632793,-158.8099067,0.00013698,2]
[352019685,1738884632804,-500.0,0.00013698,2]
[352019687,1738884632815,-500.0,0.00013698,2]
[352019689,1738884632824,-500.0,0.00013698,2]
[352019691,1738884632834,-500.0,0.00013698,2]
[352019693,1738884632843,-500.0,0.00013698,2]
[352019695,1738884632853,-210.52143357,0.00013698,2]
[352019697,1738884632866,-289.47856643,0.00013698,2]
[352019699,1738884632876,-154.36983013,0.00013698,2]
[352020056,1738884638435,-345.63016987,0.00013698,2]
[352020058,1738884638445,-504.05673413,0.00013698,2]
[352020060,1738884638454,-515.63393805,0.00013698,2]
[352020062,1738884638463,-282.02445126,0.00013698,2]
[352020074,1738884638563,-217.97554874,0.00013698,2]
[352020076,1738884638573,-501.56075748,0.00013698,2]
[352020078,1738884638584,-500.0,0.00013698,2]
[352020080,1738884638594,-500.0,0.00013698,2]
[352020082,1738884638604,-500.0,0.00013698,2]
[352020084,1738884638613,-380.35402336,0.00013698,2]
[352020086,1738884638623,-500.0,0.00013698,2]
[352020088,1738884638633,-500.0,0.00013698,2]
[352020090,1738884638643,-500.0,0.00013698,2]
[352020092,1738884638653,-500.0,0.00013698,2]
[352020094,1738884638663,-500.0,0.00013698,2]
[352020096,1738884638672,-500.0,0.00013698,2]
[352020098,1738884638682,-500.0,0.00013698,2]
[352020100,1738884638692,-500.0,0.00013698,2]
[352020102,1738884638701,-500.0,0.00013698,2]
[352020104,1738884638710,-500.0,0.00013698,2]
[352020106,1738884638720,-500.0,0.00013698,2]
[352020107,1738884638730,-500.0,0.00013698,2]
[352020110,1738884638739,-500.0,0.00013698,2]
[352020111,1738884638750,-451.40282279,0.00013698,2]
[352020297,1738884640679,-48.59717721,0.00013698,2]
[352020299,1738884640688,-212.40282279,0.00013698,2]
[352020305,1738884640737,-287.59717721,0.00013698,2]
[352020307,1738884640746,-500.0,0.00013698,2]
[352020309,1738884640756,-500.0,0.00013698,2]
[352020311,1738884640765,-500.0,0.00013698,2]
[352020313,1738884640774,-190.03300609,0.00013698,2]
[352022750,1738885590539,-300.0,0.00013502,2]
[352022751,1738885590559,-300.0,0.00013503,2]
[352022752,1738885590572,-2986.0,0.00013503,2]
[352022753,1738885611948,-6408.0,0.00013503,2]
[352022754,1738885630109,-500.0,0.00013598,2]
[352022755,1738885630131,-500.0,0.00013598,2]
[352022756,1738885630152,-216.74707501,0.0001369,2]
[352022757,1738885630174,-300.0,0.00013697,2]
[352022758,1738885630197,-500.0,0.00013698,2]
[352022759,1738885630219,-500.0,0.00013698,2]
[352022760,1738885630241,-44.58398806,0.00013698,2]
[352022761,1738885634137,-184.03314831,0.00013698,2]
[352022762,1738885639223,-271.38286363,0.00013698,2]
[352022763,1738885639255,-500.0,0.00013698,2]
[352022764,1738885639289,-570.19,0.00013698,2]
[352022765,1738885639321,-16.85427274,0.00013698,2]
[352022766,1738885639334,-271.38286363,0.00013698,2]
[352022767,1738885639354,-211.76286363,0.00013698,2]
[352022768,1738885639364,-288.23713637,0.00013698,2]
[352022769,1738885639376,-211.76286363,0.00013698,2]
[352022770,1738885639386,-358.42713637,0.00013698,2]
[352022771,1738885639408,-141.57286363,0.00013698,2]
[352022772,1738885639418,-358.42713637,0.00013698,2]
[352022773,1738885653342,-141.57286363,0.00013698,2]
[352022774,1738885653365,-500.0,0.00013698,2]
[352022775,1738885653387,-500.0,0.00013698,2]
[352022776,1738885653409,-500.0,0.00013698,2]
[352022777,1738885653431,-500.0,0.00013698,2]
[352022778,1738885653452,-500.0,0.00013698,2]
[352022779,1738885653475,-103.17245872,0.00013698,2]
[352022785,1738885728220,500.0,0.00011505,2]
[352022798,1738885833083,-487.44714455,0.00013598,2]
[352022799,1738885833094,-300.0,0.00013697,2]
[352022800,1738885833104,-396.82754128,0.00013698,2]
[352022801,1738885833115,-500.0,0.00013698,2]
[352022802,1738885833126,-309.96699391,0.00013698,2]
[352022803,1738885833136,-500.0,0.00013698,2]
[352022804,1738885833146,-500.0,0.00013698,2]
[352022805,1738885833155,-500.0,0.00013698,2]
[352022806,1738885833166,-500.0,0.00013698,2]
[352022807,1738885833176,-500.0,0.00013698,2]
[352022808,1738885833186,-500.0,0.00013698,2]
[352022809,1738885833196,-500.0,0.00013698,2]
[352022810,1738885833206,-500.0,0.00013698,2]
[352022811,1738885833216,-236.22024037,0.00013698,2]
[352022812,1738885833226,-500.0,0.00013698,2]
[352022813,1738885833235,-431.28898892,0.00013698,2]
[352022815,1738885838878,-68.71101108,0.00013698,2]
[352022816,1738885838887,-311.55049964,0.00013698,2]
[352022817,1738885838898,-188.44950036,0.00013698,2]
[352022818,1738885838907,-500.0,0.00013698,2]
[352022819,1738885838917,-500.0,0.00013698,2]
[352022820,1738885838926,-500.0,0.00013698,2]
[352022821,1738885838935,-500.0,0.00013698,2]
[352022822,1738885838944,-583.65,0.00013698,2]
[352022823,1738885838953,-596.81,0.00013698,2]
[352022824,1738885838963,-506.56351704,0.00013698,2]
[352022825,1738885838972,-500.0,0.00013698,2]
[352022826,1738885838981,-500.0,0.00013698,2]
[352022827,1738885838991,-500.0,0.00013698,2]
[352022828,1738885839000,-500.0,0.00013698,2]
[352022829,1738885839011,-500.0,0.00013698,2]
[352022830,1738885839020,-385.49425514,0.00013698,2]
[352022831,1738885839029,-500.0,0.00013698,2]
[352022832,1738885839039,-500.0,0.00013698,2]
[352022833,1738885839048,-500.0,0.00013698,2]
[352022834,1738885839057,-500.0,0.00013698,2]
[352022835,1738885839067,-500.0,0.00013698,2]
[352022836,1738885839076,-500.0,0.00013698,2]
[352022837,1738885839085,-500.0,0.00013698,2]
[352022838,1738885839095,-558.88805911,0.00013698,2]
[352022839,1738885839104,-500.0,0.00013698,2]
[352022840,1738885839114,-500.0,0.00013698,2]
[352022841,1738885839123,-500.0,0.00013698,2]
[352022842,1738885839133,-500.0,0.00013698,2]
[352022843,1738885839142,-500.0,0.00013698,2]
[352022844,1738885839152,-500.0,0.00013698,2]
[352022845,1738885839162,-500.0,0.00013698,2]
[352022846,1738885839172,-500.0,0.00013698,2]
[352022847,1738885839181,-564.37,0.00013698,2]
[352022848,1738885839190,-196.6783849,0.00013698,2]
[352022871,1738885840843,-303.3216151,0.00013698,2]
[352022872,1738885840853,-187.08506765,0.00013698,2]
[352022873,1738885840867,-312.91493235,0.00013698,2]
[352022874,1738885840876,-128.47820934,0.00013698,2]
[352022875,1738885840887,-371.52179066,0.00013698,2]
[352022876,1738885840896,-121.76077087,0.00013698,2]
[352022886,1738885844090,-378.23922913,0.00013698,2]
[352022887,1738885844100,-121.76077087,0.00013698,2]
[352022888,1738885844112,-280.0000079,0.00013698,2]
[352022911,1738885846855,-837.37922123,0.00013698,2]